[Event "Czech Extraliga 2023-24"]
[Site "Czech Republic"]
[Date "2024.04.07"]
[Round "11.2"]
[White "Mihok, Oliver"]
[Black "Antoniewski, Rafal"]
[Result "1-0"]
[ECO "B41"]
[WhiteElo "2544"]
[BlackElo "2461"]
[Annotator "TA"]
[PlyCount "89"]
[EventDate "2023.10.14"]
[EventCountry "CZE"]
[SourceTitle "playchess.com"]
[Source "ChessBase"]
[SourceQuality "1"]
[TimeControl "40/5400+30:1800+30"]

{[%evp 12,89,35,27,45,37,25,24,27,31,32,28,39,29,18,33,37,36,25,27,31,33,27,19,13,19,21,17,9,8,9,16,26,18,20,18,25,0,54,37,70,53,65,28,21,25,56,38,47,76,121,121,125,119,173,170,225,141,208,191,195,210,196,204,255,235,249,206,194,166,198,218,234,208,409,184,205,155,352,329]} 1. e4 {[%emt 0:00:03]} c5 {[%emt 0:00:20]} 2. Nf3 {[%emt 0:00:07]} e6 {[%emt 0:00:05]} 3. d4 {[%emt 0:02:08]} cxd4 {[%emt 0:00:08]} 4. Nxd4 {[%emt 0:00:03]} a6 {[%emt 0:00:07]} 5. c4 {[%emt 0:01:11]} Nf6 {[%emt 0:01:03]} 6. Nc3 {[%emt 0:00:05]} Bb4 {[%emt 0:00:29]} 7. Qd3 {[%emt 0:00:37] B41: Sicilian: Kan Variation: 5 c4.} d5 {[%emt 0:00:59]} 8. exd5 {[%emt 0:01:29]} exd5 {[%emt 0:00:04]} 9. Be2 {[%emt 0:01:27]} O-O {[%emt 0:00:08]} 10. O-O {[%emt 0:00:33]} Nc6 {[%emt 0:01:14]} 11. Nxc6 {[%emt 0:02:08]} bxc6 {[%emt 0:00:08]} 12. cxd5 {[%emt 0:00:07]} Nxd5 {[%emt 0:00:17]} 13. Nxd5 {[%emt 0:00:21]} Qxd5 {[%emt 0:00:08]} 14. Qxd5 {[%emt 0:02:24]} (14. Qg3 {is interesting.} Bd6 15. Bf4 Bxf4 16. Qxf4 Be6 17. Rfc1) 14... cxd5 {[%emt 0:00:05]} 15. Bf4 {[%emt 0:02:05]} a5 {[%emt 0:03:57]} 16. Rfd1 {[%emt 0:08:57]} Be6 {[%emt 0:00:40]} 17. Bf3 {[%emt 0:01:14]} Rfd8 {[%emt 0:03:16]} 18. Rac1 {[%emt 0:11:30]} a4 $146 {[%emt 0:07:32]} ({Predecessor:} 18... Be7 19. Be5 h6 20. Kf1 Rac8 21. Bc7 Rd7 22. Bxa5 Rxc1 23. Rxc1 d4 24. a3 d3 {1-0 Aryan,C (2610)-Gurel,E (2435) Biel HTO 55th 2022 (9)}) 19. Bc7 {[%emt 0:11:11]} Rd7 {[%emt 0:02:37]} 20. Be5 {[%emt 0:02:32]} Bf8 {[%emt 0:09:51]} 21. a3 {[%emt 0:02:06]} g6 {[%emt 0:07:08]} 22. Rd4 {[%emt 0:04:10]} Bg7 {[%emt 0:03:36]} 23. Bxg7 {[%emt 0:00:13]} Kxg7 {[%emt 0:00:03]} 24. Rb4 {[%emt 0:02:47]} Rd6 {[%emt 0:03:42]} (24... Rdd8 $11) 25. Kf1 {[%emt 0:04:45]} Ra5 {[%emt 0:23:44]} 26. Bd1 {[%emt 0:04:33]} Bd7 {[%emt 0:02:22]} 27. Rc7 {[%emt 0:04:21]} d4 {[%emt 0:06:08]} 28. Ke1 {[%emt 0:00:31]} Bc6 {[%emt 0:04:36]} 29. g3 {[%emt 0:04:55]} Re5+ {[%emt 0:08:46]} 30. Kd2 {[%emt 0:00:32]} Ree6 {[%emt 0:04:55]} 31. f4 {[%emt 0:03:30]} Rf6 {[%emt 0:03:03]} 32. Rb6 {[%emt 0:01:55]} d3 {[%emt 0:03:39]} (32... Rde6 $16 {was necessary.} 33. Ra7 d3) 33. Ra7 $18 {[%emt 0:02:21]} g5 {[%emt 0:00:29]} (33... Rd4 $142 34. h4 Re6) 34. Bxa4 $18 {[%emt 0:08:35]} gxf4 {[%emt 0:00:03]} (34... Bxa4 $16 35. Rxd6 Rxd6 36. Rxa4 Rh6) 35. gxf4 $18 {[%emt 0:00:30]} Be4 {[%emt 0:00:18]} 36. Rxd6 {[%emt 0:00:59]} Rxd6 {[%emt 0:00:01] [#]} 37. Re7 $1 {[%emt 0:01:27]} Bg6 {[%emt 0:00:43]} 38. Bd1 {[%emt 0:04:44]} Rd4 {[%emt 0:01:49]} 39. Ke3 {[%emt 0:00:19]} Rc4 {[%emt 0:00:03]} 40. h4 {[%emt 0:04:20]} Rc1 {[%emt 0:01:27]} 41. Kd2 {[%emt 0:30:53]} Rc4 {[%emt 0:01:42]} 42. h5 {[%emt 0:00:00]} Kf6 $2 {[%emt 0:00:03]} (42... Bf5 43. Re3 Kf6) 43. Rb7 {[%emt 0:00:00]} (43. hxg6 $142 Kxe7 44. gxh7 (44. Kxd3 Rc6 $11)) 43... Bf5 $18 {[%emt 0:00:05]} 44. Rb4 {[%emt 0:00:00]} Rc8 $2 {[%emt 0:00:21]} (44... Rxb4 $16 {keeps fighting.} 45. axb4 h6) 45. Rb6+ {[%emt 0:00:00]} 1-0

[Event "Czech Extraliga 2023-24"]
[Site "Czech Republic"]
[Date "2024.04.07"]
[Round "11.2"]
[White "Neugebauer, Martin"]
[Black "Navara, David"]
[Result "0-1"]
[ECO "B51"]
[WhiteElo "2525"]
[BlackElo "2678"]
[Annotator "TA"]
[PlyCount "54"]
[EventDate "2023.10.14"]
[EventCountry "CZE"]
[SourceTitle "playchess.com"]
[Source "ChessBase"]
[SourceQuality "1"]
[TimeControl "40/5400+30:1800+30"]

{[%evp 9,54,18,15,13,12,2,14,6,18,17,31,26,33,24,32,45,64,31,49,31,10,44,58,53,36,33,83,14,7,0,2,0,0,0,0,0,392,-181,-166,-577,-588,-2560,-2581,-29983,-29984,-6349,-6027]} 1. e4 {[%emt 0:00:05]} c5 {[%emt 0:00:03]} 2. Nf3 {[%emt 0:00:13]} d6 {[%emt 0:00:04]} 3. Bb5+ {[%emt 0:00:37]} Nd7 {[%emt 0:00:09][%cal Bb8d7,Bd7c5,Bc5d3][%mdl 32]} 4. d4 {[%emt 0:01:08]} cxd4 {[%emt 0:00:12]} 5. Nxd4 {[%emt 0:00:07]} Ngf6 {[%emt 0:00:26]} 6. Bd3 {[%emt 0:00:23]} Nc5 {[%emt 0:02:34]} 7. Nc3 {[%emt 0:00:17]} a6 {[%emt 0:05:14]} 8. Nb3 {[%emt 0:11:43] The position is equal.} Nxd3+ {[%emt 0:00:24]} 9. Qxd3 {[%emt 0:01:04]} e6 {[%emt 0:04:46]} 10. Bg5 {[%emt 0:03:27][%cal Bc1g5,Bg5h4,Bh4g3][%mdl 32]} h6 {[%emt 0:05:36]} 11. Bh4 {[%emt 0:02:14]} b5 {[%emt 0:03:25][%cal Bb7b5,Bb5b4,Bb4c3,Bc3b2][%mdl 32]} 12. O-O-O {[%emt 0:18:48][%cal Oe4e5]} b4 {[%emt 0:03:56] [#]} 13. e5 $1 {[%emt 0:20:15]} bxc3 {[%emt 0:01:48]} 14. exf6 {[%emt 0:00:11]} cxb2+ {[%emt 0:01:52]} 15. Kb1 $1 {[%emt 0:00:05][%cal Of6g7] Threatens to win with fxg7!} g5 {[%emt 0:01:02]} (15... gxf6 $2 16. Qf3 $18 (16. Kxb2 Be7 $17)) 16. Bg3 {[%emt 0:00:18][%mdl 1024] White has compensation.} Bb7 {[%emt 0:11:53]} (16... Qxf6 $2 17. Bxd6 Bxd6 18. Qxd6 $18) 17. Rhe1 {[%emt 0:04:35]} Qb6 {[%emt 0:05:29] [#] Inhibits Nc5.} ({Black should play} 17... Rc8 $1 $14) 18. Nd2 {[%emt 0:10:02]} (18. Kxb2 Rc8 $11) (18. Bxd6 $6 Qxd6 (18... Bxg2 $2 19. Rxe6+ fxe6 20. Qg6+ Kd8 21. Bc5+ $18) 19. Qxd6 Bxd6 20. Rxd6 Bxg2 $15) (18. c4 $1 $16) 18... d5 $1 $132 {[%emt 0:22:51][%mdl 2048] [#] Black is fighting back} (18... Bxg2 $2 19. Nc4 Qc7 20. Nxd6+ (20. Bxd6 Bxd6 21. Nxd6+ Kf8 $14) 20... Bxd6 21. Bxd6 $16) 19. Nc4 $1 {[%emt 0:01:28]} Qb5 {[%emt 0:00:08] [#] The board is on fire.} (19... dxc4 20. Qd7#) 20. Rxe6+ $1 {[%emt 0:12:11]} fxe6 {[%emt 0:00:15]} 21. Qg6+ {[%emt 0:00:02]} Kd8 {[%emt 0:00:15]} 22. Ne5 {[%emt 0:00:09] Hoping for Nf7+.} Kc8 $2 {[%emt 0:07:13][%mdl 8192]} (22... Qe2 $11 {and Black is okay.} 23. Rd3 Rc8) 23. Nf7 $4 {[%emt 0:04:41][%mdl 8192] [#]} (23. Rd3 $18 {and all is fine.} Bc6 24. Rb3 Qf1+ 25. Kxb2) 23... d4 $1 $19 {[%emt 0:00:26]} (23... Qe2 $2 24. Rd3 Bc6 25. Nxh8 $18) 24. Nxh8 $2 {[%emt 0:02:27]} (24. Rxd4 Bc5 25. Qd3 Qxd3 26. Rxd3) 24... Bd5 {[%emt 0:00:16][%cal Od5a2] ( -> ...Bxa2+!)} 25. Qd3 {[%emt 0:05:19]} Qa5 {[%emt 0:03:05][%csl Gd5][%cal Ra5a2]} (25... Bxg2 26. Qxd4 Bd5 27. Ng6 $18 (27. Qxb2 Ra7 $16)) 26. a3 {[%emt 0:00:43]} Bxa3 {[%emt 0:00:12]} ({Worse is} 26... Bxg2 27. Qxd4 (27. Kxb2 Ra7 $17) 27... Bd5 28. a4 $18 (28. Kxb2 Qxa3+ 29. Kb1 Ba2+ 30. Ka1 Bb3+ 31. Kb1 Qa2+ 32. Kc1 Qxc2#)) 27. c4 {[%emt 0:00:57]} dxc3 {[%emt 0:01:13] Weighted Error Value: White=0.82/Black=0.24 (precise) .  Loses game:     	---       	Black=1      Missed win:     	White=1     	---        Mistake:       	White=2     	Black=1      Inaccurate:     	White=2     	---        OK:         	White=9     	Black=8      Best:        	White=2     	Black=3      Strong:       	White=1     	Black=2      Brilliant:      	White=1     	---} (27... Bxg2 28. Qxd4 Bc6 29. Nf7 $11) 0-1

[Event "Czech Extraliga 2023-24"]
[Site "Czech Republic"]
[Date "2024.04.07"]
[Round "11.2"]
[White "Baidetskyi, Valentin"]
[Black "Samunenkov, Ihor"]
[Result "0-1"]
[ECO "C42"]
[WhiteElo "2485"]
[BlackElo "2533"]
[Annotator "TA"]
[PlyCount "102"]
[EventDate "2023.10.14"]
[EventCountry "CZE"]
[SourceTitle "playchess.com"]
[Source "ChessBase"]
[SourceQuality "1"]
[TimeControl "40/5400+30:1800+30"]

{[%evp 19,102,-11,-11,-4,-6,-9,-8,-10,-4,-10,-12,-18,-20,-21,-16,-19,-8,-22,0,-4,0,-8,-5,-6,0,-6,-6,-6,-6,-11,0,0,-10,-39,-46,-27,-27,-130,-108,-159,-152,-152,-155,-158,-120,-302,-293,-372,-429,-391,-470,-465,-402,-526,-485,-1170,-1221,-1154,-1633,-576,-1910,-2255,-1652,-1435,-1308,-7418,-7725,-29948,-576,-29963,-12847,-29972,-29973,-29981,-29982,-29988,-29979,-29980,-29973,-29981,-29982,-29982,-29983,-29982,-29983]} 1. e4 {[%emt 0:00:19]} e5 {[%emt 0:00:10]} 2. Nf3 {[%emt 0:00:07]} Nf6 {[%emt 0:00:06]} 3. Nxe5 {[%emt 0:03:05]} d6 {[%emt 0:00:07]} 4. Nd3 {[%emt 0:00:49]} Nxe4 {[%emt 0:00:10]} 5. Qe2 {[%emt 0:00:04]} Qe7 {[%emt 0:00:43]} 6. Nf4 {[%emt 0:00:26] C42: Petroff Defence: 3 Nxe5 and unusual White 3rd moves.} Nc6 {[%emt 0:03:11]} 7. Nd5 {[%emt 0:08:01]} Nd4 {[%emt 0:00:32]} 8. Nxe7 {[%emt 0:00:30]} Nxe2 {[%emt 0:00:08]} 9. Bxe2 {[%emt 0:00:08]} Bxe7 {[%emt 0:00:15]} 10. Nc3 {[%emt 0:00:10]} Nxc3 {[%emt 0:05:56]} 11. dxc3 $146 {[%emt 0:01:20]} ({Predecessor:} 11. bxc3 Bf5 12. d3 Bf6 13. Bd2 O-O-O 14. g4 Bd7 15. g5 Be7 16. h4 Rde8 17. f4 {1-0 Nakamura,H (2766)-Andreikin,D (2729) Chess.com Rapid Wk14 KO 2022 (3.2)}) 11... Bf5 {[%emt 0:00:16]} 12. Bd3 {[%emt 0:00:09]} Bxd3 {[%emt 0:01:30]} 13. cxd3 {[%emt 0:00:06]} Kd7 {[%emt 0:00:16]} 14. Bd2 {[%emt 0:03:33]} h5 {[%emt 0:15:23]} 15. h4 {[%emt 0:01:12]} Rae8 {[%emt 0:09:20]} 16. O-O-O {[%emt 0:02:17]} d5 {[%emt 0:00:57]} 17. Rde1 {[%emt 0:02:40]} Bf6 {[%emt 0:08:35]} 18. g3 {[%emt 0:05:06]} Re6 {[%emt 0:06:30]} 19. d4 {[%emt 0:04:24]} b6 {[%emt 0:03:40]} 20. Rxe6 {[%emt 0:18:21]} fxe6 {[%emt 0:02:27]} 21. Be3 {[%emt 0:00:14]} Rf8 {[%emt 0:07:40]} 22. Rg1 {[%emt 0:01:48]} e5 {[%emt 0:02:11]} 23. dxe5 {[%emt 0:16:49]} Bxe5 {[%emt 0:00:12]} 24. Rd1 {[%emt 0:00:03]} Ke6 {[%emt 0:07:54]} 25. Re1 {[%emt 0:03:58]} Kf5 {[%emt 0:10:42]} 26. Bd4 {[%emt 0:04:03]} Bxd4 {[%emt 0:00:50]} 27. cxd4 {[%emt 0:00:01]} Kg4 {[%emt 0:01:09]} 28. Re2 {[%emt 0:17:07]} (28. Re5 $1 $11) 28... a5 {[%emt 0:07:57]} 29. Kd2 {[%emt 0:00:32] [#]} (29. a3 $142) 29... Kh3 $1 $17 {[%emt 0:01:59]} 30. Ke1 {[%emt 0:00:51]} Kg2 {[%emt 0:00:08]} 31. b3 {[%emt 0:00:30]} c6 {[%emt 0:03:07]} 32. Re7 $2 {[%emt 0:05:43]} (32. a4 $17) 32... Rxf2 $19 {[%emt 0:01:17]} 33. Rxg7 {[%emt 0:00:02]} Rxa2 {[%emt 0:00:29]} 34. g4 {[%emt 0:00:44]} hxg4 {[%emt 0:00:42]} 35. Rxg4+ {[%emt 0:00:02]} Kf3 {[%emt 0:00:38]} 36. Rg6 {[%emt 0:00:01]} Ke3 {[%emt 0:00:35]} 37. Kd1 {[%emt 0:00:01]} (37. Kf1 $142 c5 (37... Kxd4 38. Rxc6 b5 39. h5 $17) 38. dxc5 bxc5 39. Re6+ Kd4 40. Rf6) 37... Kxd4 $19 {[%emt 0:00:44]} 38. Rxc6 {[%emt 0:00:08]} b5 {[%emt 0:00:32]} 39. h5 {[%emt 0:00:21]} Rh2 {[%emt 0:00:26]} 40. h6 {[%emt 0:00:07]} b4 {[%emt 0:00:34]} 41. Kc1 {[%emt 0:05:37]} Kd3 {[%emt 0:12:49]} 42. Kb1 {[%emt 0:06:08]} d4 {[%emt 0:01:53]} 43. Kc1 {[%emt 0:00:47]} Rh1+ {[%emt 0:06:51]} 44. Kb2 {[%emt 0:00:01]} Kd2 {[%emt 0:00:09]} 45. Rd6 {[%emt 0:02:08]} d3 {[%emt 0:01:27]} 46. Re6 {[%emt 0:00:26]} Rh2 {[%emt 0:00:26]} 47. Rd6 {[%emt 0:00:39]} Ke3+ {[%emt 0:00:35]} 48. Kc1 {[%emt 0:05:09]} Rh1+ {[%emt 0:00:23]} 49. Kb2 {[%emt 0:00:01]} d2 {[%emt 0:00:45]} 50. h7 {[%emt 0:04:08]} Rxh7 {[%emt 0:00:27]} ({Worse is} 50... d1=B 51. Rxd1 Rxh7 52. Rd5 $11) 51. Re6+ {[%emt 0:00:10]} Kd3 {[%emt 0:00:08]} 0-1

[Event "Czech Extraliga 2023-24"]
[Site "Czech Republic"]
[Date "2024.04.07"]
[Round "11.3"]
[White "Nguyen, Thai Dai Van"]
[Black "Hracek, Zbynek"]
[Result "1-0"]
[ECO "E07"]
[WhiteElo "2643"]
[BlackElo "2537"]
[Annotator "TA"]
[PlyCount "127"]
[EventDate "2023.10.14"]
[EventCountry "CZE"]
[SourceTitle "playchess.com"]
[Source "ChessBase"]
[SourceQuality "1"]
[TimeControl "40/5400+30:1800+30"]

{[%evp 47,127,0,0,0,0,0,0,0,0,0,0,0,0,0,0,0,0,0,0,0,0,0,0,0,0,0,2,0,0,0,16,16,16,4,4,4,6,6,7,1,1,1,1,1,8,8,23,0,0,0,14,14,14,14,14,14,20,0,0,0,22,0,6,0,17,6,6,6,8,8,261,222,732,683,734,718,713,650,599,515,1891,1354]} 1. c4 {[%emt 0:00:03]} e6 {[%emt 0:00:15]} 2. g3 {[%emt 0:00:36]} d5 {[%emt 0:00:54]} 3. Bg2 {[%emt 0:00:05]} Nf6 {[%emt 0:00:04]} 4. Nf3 {[%emt 0:00:06]} Be7 {[%emt 0:00:13]} 5. d4 {[%emt 0:00:12]} O-O {[%emt 0:00:06]} 6. Nc3 {[%emt 0:00:34]} c6 {[%emt 0:12:39]} 7. O-O {[%emt 0:00:26]} Nbd7 {[%emt 0:00:35]} 8. b3 {[%emt 0:10:10]} b6 {[%emt 0:02:31]} 9. Qd3 {[%emt 0:01:38]} Bb7 {[%emt 0:05:11] E07: Closed Catalan: Main Line (5 Nf3 0-0 6 0-0 Nbd7).} 10. e4 {[%emt 0:05:35] 10.Bb2 is the modern continuation.} dxe4 {[%emt 0:02:20]} 11. Nxe4 {[%emt 0:00:07]} c5 {[%emt 0:01:05]} 12. Nxf6+ {[%emt 0:01:26]} Bxf6 {[%emt 0:01:07]} 13. Ng5 {[%emt 0:16:50]} Bxg5 {[%emt 0:00:06]} 14. Bxb7 {[%emt 0:00:04]} Rb8 {[%emt 0:09:47]} 15. Bxg5 {[%emt 0:00:10]} Qxg5 {[%emt 0:00:07]} 16. Bg2 {[%emt 0:00:16]} Rfd8 {[%emt 0:13:04]} 17. Rad1 {[%emt 0:04:19]} cxd4 {[%emt 0:02:09]} 18. Qxd4 {[%emt 0:02:24]} a5 $146 {[%emt 0:00:03]} ({Predecessor:} 18... Nc5 19. Qc3 Rxd1 20. Rxd1 Rd8 21. Rxd8+ Qxd8 22. b4 Nd7 23. c5 bxc5 24. bxc5 Qc7 {½-½ Theodorou,N (2627)-Triplett,L (1839) Pan American Intercollegiate-chT 2024 (1.6)}) 19. h4 {[%emt 0:03:25]} Qc5 {[%emt 0:03:38]} 20. Qd2 {[%emt 0:03:38]} Qc7 {[%emt 0:11:00]} 21. Qe3 {[%emt 0:04:06]} Nf6 {[%emt 0:00:26]} 22. Bf3 {[%emt 0:01:15]} h6 {[%emt 0:09:38]} 23. Rfe1 {[%emt 0:02:55]} Rbc8 {[%emt 0:04:44]} 24. Kg2 {[%emt 0:01:38]} Kf8 {[%emt 0:03:19]} 25. Qc3 {[%emt 0:03:16]} Rxd1 {[%emt 0:02:50]} 26. Rxd1 {[%emt 0:00:02]} Ke7 {[%emt 0:00:08]} 27. a3 {[%emt 0:05:26]} Qc5 {[%emt 0:02:34]} 28. Qb2 {[%emt 0:00:13]} Rd8 {[%emt 0:03:15]} 29. Rxd8 {[%emt 0:05:59]} Kxd8 {[%emt 0:00:01]} 30. Be2 {[%emt 0:00:18]} Ke7 {[%emt 0:00:07]} 31. b4 {[%emt 0:00:24]} axb4 {[%emt 0:00:03]} 32. axb4 {[%emt 0:00:07]} Qc6+ {[%emt 0:00:12]} 33. Kg1 {[%emt 0:00:29]} g5 {[%emt 0:04:22]} 34. hxg5 {[%emt 0:03:07]} hxg5 {[%emt 0:00:01]} 35. Qc1 {[%emt 0:04:03]} Qd6 {[%emt 0:01:28]} 36. c5 {[%emt 0:01:27]} bxc5 {[%emt 0:00:02]} 37. bxc5 {[%emt 0:00:05]} Qe5 {[%emt 0:00:30]} 38. c6 {[%emt 0:02:32]} Nd5 {[%emt 0:04:07]} 39. Bf3 {[%emt 0:01:55]} Nc7 {[%emt 0:02:02]} 40. Qd2 {[%emt 0:01:16]} Kf6 {[%emt 0:03:10]} 41. Qd7 {[%emt 0:46:30]} Qe1+ {[%emt 0:04:52]} 42. Kg2 {[%emt 0:00:00]} Qe5 {[%emt 0:00:02]} 43. Kh2 {[%emt 0:00:00]} Kg6 {[%emt 0:02:57]} 44. Kg1 {[%emt 0:00:00]} Qe1+ {[%emt 0:00:35]} 45. Kg2 {[%emt 0:00:00]} Qe5 {[%emt 0:00:04]} 46. Qe7 {[%emt 0:00:00]} Kg7 {[%emt 0:06:14]} 47. Bh5 {[%emt 0:00:00]} Qe4+ {[%emt 0:00:40]} 48. Bf3 {[%emt 0:00:00]} Qe5 {[%emt 0:00:05]} 49. Qd8 {[%emt 0:00:00]} Na6 {[%emt 0:00:15]} 50. Qd7 {[%emt 0:00:00]} Nc7 {[%emt 0:01:57]} 51. Bh5 {[%emt 0:00:00]} Qe4+ $1 {[%emt 0:00:38]} 52. Kg1 {[%emt 0:00:00]} (52. Kh2 $5 Qf5 53. Kg2 (53. Qxc7 Qxf2+ 54. Kh3 Qf1+ 55. Kh2 Qf2+ 56. Kh1 Qf1+ 57. Kh2 Qf2+ $11) 53... Qe4+ 54. Bf3 $16) 52... Qe1+ {[%emt 0:00:12]} 53. Kg2 {[%emt 0:00:00]} Qe4+ {[%emt 0:00:05]} 54. Bf3 {[%emt 0:00:18]} (54. Kh2 $5 Qf5 55. Kg2 $16 (55. Qxc7 Qxf2+ 56. Kh1 Qf1+ 57. Kh2 Qf2+ 58. Kh1 Qf1+ 59. Kh2 Qf2+ $11)) 54... Qe5 {[%emt 0:01:21]} 55. Qd8 {[%emt 0:02:10]} Na6 {[%emt 0:00:10]} 56. Qc8 {[%emt 0:01:01]} Nc7 {[%emt 0:00:14]} 57. Qb8 {[%emt 0:00:22]} f5 {[%emt 0:10:45]} 58. Qd8 {[%emt 0:00:37]} g4 $2 {[%emt 0:00:45][%mdl 8192]} (58... Kg6 $11 {and Black stays safe.}) 59. Qg5+ $18 {[%emt 0:00:16]} Kh7 $2 {[%emt 0:02:29]} (59... Kf7 60. Bxg4 Qf6) 60. Bxg4 $18 {[%emt 0:00:15]} Qg7 {[%emt 0:01:00]} 61. Qh4+ {[%emt 0:00:54]} Kg8 {[%emt 0:00:17]} 62. Qd8+ {[%emt 0:00:04]} Kh7 {[%emt 0:00:04]} 63. Bh5 {[%emt 0:02:01]} Nd5 {[%emt 0:00:24]} (63... Qe5 $142 64. Qg5 Qg7) 64. Qd7 {[%emt 0:01:29]} 1-0

[Event "Czech Extraliga 2023-24"]
[Site "Czech Republic"]
[Date "2024.04.07"]
[Round "11.3"]
[White "Plat, Vojtech"]
[Black "Hrbek, Stepan"]
[Result "1/2-1/2"]
[ECO "C45"]
[WhiteElo "2516"]
[BlackElo "2407"]
[Annotator "TA"]
[PlyCount "127"]
[EventDate "2023.10.14"]
[EventCountry "CZE"]
[SourceTitle "playchess.com"]
[Source "ChessBase"]
[SourceQuality "1"]
[TimeControl "40/5400+30:1800+30"]

{[%evp 26,127,16,7,14,13,27,30,23,21,51,52,50,42,43,55,39,39,89,39,95,51,51,56,48,47,44,43,72,63,73,66,71,58,91,85,88,64,97,45,113,119,154,143,137,44,44,17,108,108,110,54,39,23,32,23,25,8,136,123,125,122,119,71,71,71,71,71,71,11,11,11,11,11,11,0,0,0,0,0,0,0,0,0,0,0,0,0,0,0,0,0,0,0,0,0,0,0,0,0,0,0,0,0]} 1. e4 {[%emt 0:00:58]} e5 {[%emt 0:00:09]} 2. Nf3 {[%emt 0:00:05]} Nc6 {[%emt 0:00:07]} 3. d4 {[%emt 0:00:10]} exd4 {[%emt 0:00:10]} 4. Nxd4 {[%emt 0:00:06]} Bc5 {[%emt 0:00:12]} 5. Nxc6 {[%emt 0:00:41]} Qf6 {[%emt 0:00:22]} 6. Qd2 {[%emt 0:00:08]} dxc6 {[%emt 0:00:34]} 7. Nc3 {[%emt 0:00:04]} Be6 {[%emt 0:00:32]} 8. Na4 {[%emt 0:00:06]} Bd6 {[%emt 0:00:12] has lost popularity (8...Rd8).} 9. Qe3 {[%emt 0:06:51] C45: Scotch Game.} Nh6 {[%emt 0:00:31]} 10. h3 {[%emt 0:04:28]} O-O {[%emt 0:00:35]} 11. Bd3 {[%emt 0:03:26]} Qh4 {[%emt 0:01:02]} 12. Qg5 {[%emt 0:02:31]} Qxg5 {[%emt 0:12:12]} 13. Bxg5 {[%emt 0:00:23]} b5 $146 {[%emt 0:03:40]} ({Predecessor:} 13... f5 14. exf5 Nxf5 15. O-O h6 16. Bd2 Nh4 17. Rad1 Rae8 18. Rfe1 Bf5 19. Bxf5 Nxf5 {½-½ Nouveau,L (2274)-Jensen,B (2263) DEN-FRA email 2015 [10]}) 14. Nc3 {[%emt 0:00:04]} a6 {[%emt 0:04:16]} 15. O-O-O {[%emt 0:02:08]} f6 {[%emt 0:03:16]} 16. Be3 {[%emt 0:00:13]} Nf7 {[%emt 0:03:20]} 17. f4 {[%emt 0:04:29]} c5 {[%emt 0:01:39]} 18. e5 {[%emt 0:01:37]} fxe5 {[%emt 0:00:35]} 19. f5 {[%emt 0:01:53]} Bd7 {[%emt 0:04:56]} 20. Be4 {[%emt 0:01:04]} Rad8 {[%emt 0:00:13]} 21. g4 {[%emt 0:00:26]} Be7 {[%emt 0:01:54] [#]} ({Black should try} 21... Kh8 $14) 22. Bd5 {[%emt 0:07:28]} (22. Nd5 $1 $16 {[%cal Rd5e7]} Bg5 23. Rhe1) 22... c6 {[%emt 0:02:22]} (22... Kh8 $14) 23. Bxf7+ {[%emt 0:00:44]} Kxf7 {[%emt 0:00:20]} 24. Ne4 {[%emt 0:00:04]} Bc8 {[%emt 0:01:48]} 25. Bxc5 {[%emt 0:00:24]} Bxc5 {[%emt 0:02:12]} 26. Nxc5 {[%emt 0:00:05]} g6 {[%emt 0:00:04]} 27. fxg6+ {[%emt 0:02:17]} Kxg6 {[%emt 0:13:47]} 28. Rde1 {[%emt 0:00:13]} Rde8 {[%emt 0:06:53]} 29. Re3 {[%emt 0:03:04]} Kg5 {[%emt 0:01:08]} 30. Rhe1 {[%emt 0:02:50]} Kh4 {[%emt 0:01:02]} 31. b4 {[%emt 0:03:01]} (31. Rxe5 $6 Rxe5 32. Rxe5 Rf1+ 33. Kd2 Kxh3 $11) 31... Rf7 {[%emt 0:06:55]} 32. Kb2 {[%emt 0:00:27]} (32. Rxe5 Rxe5 33. Rxe5 Kxh3 $17) (32. Ne4 $16 Ref8 33. Nd2) 32... Ref8 {[%emt 0:10:27]} (32... e4 $1 $14) 33. Nd3 $16 {[%emt 0:04:38]} e4 {[%emt 0:01:32]} 34. Rxe4 {[%emt 0:03:22]} Kxh3 {[%emt 0:01:27] [#]} 35. g5 {[%emt 0:03:06]} (35. Rh1+ $1 $16 Kg2 36. Rh6) 35... Rf1 $1 $14 {[%emt 0:03:02]} 36. R1e2 {[%emt 0:02:52]} Bf5 {[%emt 0:03:33]} (36... R8f3 $11 {remains equal.}) 37. R2e3+ $16 {[%emt 0:03:18]} Kg2 {[%emt 0:06:56]} 38. Re7 {[%emt 0:00:13]} (38. Nf4+ $16 Kh1 39. Rd4) 38... Bg6 $14 {[%emt 0:04:22]} 39. Ne5 {[%emt 0:05:53]} R1f5 {[%emt 0:00:07]} 40. Nxg6 {[%emt 0:00:44]} hxg6 {[%emt 0:00:05]} 41. R3e6 {[%emt 0:34:50]} c5 {[%emt 0:05:25]} ({Much weaker is} 41... Rxg5 $6 42. Rg7 (42. Rxc6 Rg4 $18) 42... Kf3 43. Rxc6 $16 (43. Rgxg6 Rxg6 44. Rxg6 Rf4 $16)) (41... Rg8 $11) 42. Rxg6 {[%emt 0:00:00]} cxb4 {[%emt 0:00:17]} 43. Rxa6 {[%emt 0:00:00]} Rxg5 {[%emt 0:03:51]} 44. Rc6 {[%emt 0:00:00]} (44. Rae6 $142) 44... Rf4 $16 {[%emt 0:02:20]} 45. Re3 {[%emt 0:00:00]} Kf2 {[%emt 0:07:15]} 46. Rce6 {[%emt 0:00:00]} Rc4 {[%emt 0:00:33]} 47. R3e5 {[%emt 0:00:00]} ({Better is} 47. Re2+ $16 Kf3 48. Rd2 (48. R6e3+ Kf4 $11)) 47... Rxe5 $11 {[%emt 0:02:43]} 48. Rxe5 {[%emt 0:00:00]} Kf3 {[%emt 0:00:09]} 49. Rxb5 {[%emt 0:00:00]} Ke4 $1 {[%emt 0:00:12]} 50. Kb3 {[%emt 0:00:00]} Rc3+ {[%emt 0:00:07]} 51. Kxb4 {[%emt 0:00:00]} Rxc2 {[%emt 0:00:03]} 52. a4 {[%emt 0:00:00]} Kd4 $1 {[%emt 0:03:36]} 53. Rh5 {[%emt 0:00:00]} Rb2+ {[%emt 0:01:56]} 54. Ka5 {[%emt 0:00:00]} Kc4 {[%emt 0:00:10]} 55. Ka6 {[%emt 0:00:00]} Rg2 {[%emt 0:01:39]} 56. Rb5 {[%emt 0:00:00]} Rg8 {[%emt 0:00:46]} 57. Ka7 {[%emt 0:00:00]} Rg7+ {[%emt 0:00:17]} 58. Kb6 {[%emt 0:00:00]} Rg6+ {[%emt 0:03:20]} 59. Kb7 {[%emt 0:00:00]} Rg7+ {[%emt 0:00:12]} 60. Ka6 {[%emt 0:00:00]} Rg8 {[%emt 0:00:13]} 61. Rh5 {[%emt 0:00:00]} Ra8+ {[%emt 0:00:08]} 62. Kb6 {[%emt 0:00:00]} Rxa4 {[%emt 0:00:05]} 63. Rh4+ {[%emt 0:00:00]} Kb3 {[%emt 0:00:05]} 64. Rxa4 {[%emt 0:00:00]} 1/2-1/2